[Event "Kragero Resort B 2020"]
[Site "Kragero"]
[Date "2020.02.22"]
[Round "8.9"]
[White "Digernes, Mikael"]
[Black "Bernstein, Jonas August"]
[Result "1/2-1/2"]
[ECO "B17"]
[WhiteElo "1748"]
[BlackElo "1798"]
[Annotator "NA"]
[PlyCount "122"]
[EventDate "2020.02.19"]
[EventType "swiss"]
[EventCountry "NOR"]
[SourceTitle "playchess.com"]
[Source "ChessBase"]
[SourceQuality "1"]
[TimeControl "5400+30"]

1. e4 {[%emt 0:00:00]} c6 {[%emt 0:00:00]} 2. Nc3 {[%emt 0:00:00]} d5 {[%emt 0:00:00]} 3. Nf3 {[%emt 0:00:01]} dxe4 {[%emt 0:00:54]} 4. Nxe4 {[%emt 0:00:21]} Nd7 {[%emt 0:00:09]} 5. d4 {[%emt 0:01:06]} Ngf6 {[%emt 0:00:09]} 6. Ng3 {[%emt 0:02:07]} Qc7 {[%emt 0:01:40]} 7. Bd3 {[%emt 0:00:56]} e6 {[%emt 0:00:48]} 8. c3 {[%emt 0:01:28]} Bd6 {[%emt 0:00:24]} 9. O-O {[%emt 0:00:56]} O-O {[%emt 0:00:05]} 10. Re1 {[%emt 0:01:18]} b6 {[%emt 0:00:49]} 11. Qc2 {[%emt 0:07:47]} Bb7 {[%emt 0:04:41]} 12. Bg5 {[%emt 0:03:48]} h6 {[%emt 0:00:39]} 13. Bxf6 {[%emt 0:00:24]} Nxf6 {[%emt 0:00:05]} 14. Ne4 {[%emt 0:04:39]} Be7 {[%emt 0:04:49]} 15. Nxf6+ {[%emt 0:13:51]} Bxf6 {[%emt 0:00:03]} 16. Qe2 {[%emt 0:02:08]} c5 {[%emt 0:01:33]} 17. dxc5 {[%emt 0:03:48]} Qxc5 {[%emt 0:03:27]} 18. Nd2 {[%emt 0:04:32]} Qc7 {[%emt 0:09:43]} 19. Be4 {[%emt 0:14:17]} Rad8 {[%emt 0:03:02]} 20. Rad1 {[%emt 0:03:14]} Bg5 {[%emt 0:07:58]} 21. Nc4 {[%emt 0:08:42]} Ba6 {[%emt 0:04:27]} 22. b3 {[%emt 0:09:18]} Bf6 {[%emt 0:04:03]} 23. Rxd8 {[%emt 0:04:22]} Rxd8 {[%emt 0:00:19]} 24. Rd1 {[%emt 0:01:17]} Rxd1+ {[%emt 0:05:00]} 25. Qxd1 {[%emt 0:00:02]} Bxc4 {[%emt 0:00:16]} 26. bxc4 {[%emt 0:00:11]} Qxc4 {[%emt 0:00:27]} 27. Qc2 {[%emt 0:01:10]} Kf8 {[%emt 0:13:53]} 28. Bd3 {[%emt 0:01:40]} Qxc3 {[%emt 0:00:18]} 29. Qxc3 {[%emt 0:02:45]} Bxc3 {[%emt 0:00:05]} 30. Kf1 {[%emt 0:00:08]} Ke7 {[%emt 0:00:20]} 31. Ke2 {[%emt 0:00:08]} Kd6 {[%emt 0:00:10]} 32. a4 {[%emt 0:00:52]} Kc5 {[%emt 0:01:59]} 33. Bb5 {[%emt 0:00:34]} Kb4 {[%emt 0:01:36]} 34. Kd3 {[%emt 0:01:17]} Be5 {[%emt 0:00:38]} 35. h3 {[%emt 0:00:19]} Ba1 {[%emt 0:02:08]} 36. g4 {[%emt 0:01:03]} a6 {[%emt 0:03:51]} 37. Be8 {[%emt 0:03:22]} f5 {[%emt 0:02:40]} 38. f4 {[%emt 0:02:22]} fxg4 {[%emt 0:03:11]} 39. hxg4 {[%emt 0:00:01]} e5 {[%emt 0:01:29]} 40. f5 {[%emt 0:01:33]} b5 {[%emt 0:03:10]} 41. axb5 {[%emt 0:00:23]} axb5 {[%emt 0:00:02]} 42. Bc6 {[%emt 0:02:07]} Ka5 {[%emt 0:02:38]} 43. Kc2 {[%emt 0:00:32]} Kb4 {[%emt 0:01:00]} 44. Kd3 {[%emt 0:00:08]} Kc5 {[%emt 0:02:28]} 45. Be4 {[%emt 0:00:17]} b4 {[%emt 0:00:36]} 46. Bf3 {[%emt 0:01:12]} b3 {[%emt 0:01:05]} 47. Bd1 {[%emt 0:00:25]} b2 {[%emt 0:00:04]} 48. Bc2 {[%emt 0:00:14]} Kb4 {[%emt 0:02:36]} 49. Bb1 {[%emt 0:00:41]} Kb3 {[%emt 0:00:29]} 50. Kd2 {[%emt 0:00:35]} Kc4 {[%emt 0:00:27]} 51. Ba2+ {[%emt 0:00:28]} Kd4 {[%emt 0:00:16]} 52. Bb1 {[%emt 0:00:26]} e4 {[%emt 0:05:37]} 53. Ke2 {[%emt 0:00:27]} Ke5 {[%emt 0:03:15]} 54. Ke3 {[%emt 0:00:36]} h5 {[%emt 0:00:43]} 55. gxh5 {[%emt 0:00:27]} Kxf5 {[%emt 0:00:08]} 56. h6 {[%emt 0:00:34]} gxh6 {[%emt 0:00:04]} 57. Bxe4+ {[%emt 0:00:09]} Kg4 {[%emt 0:00:33]} 58. Kf2 {[%emt 0:00:53]} Kh3 {[%emt 0:04:33]} 59. Kg1 {[%emt 0:00:23]} Kg3 {[%emt 0:00:10]} 60. Bh7 {[%emt 0:00:41]} h5 {[%emt 0:00:30]} 61. Bb1 {[%emt 0:00:18]} h4 {[%emt 0:00:04] Kf2+} 1/2-1/2

[Event "Kragero Resort B 2020"]
[Site "Kragero"]
[Date "2020.02.22"]
[Round "8.10"]
[White "Aasen, Kjetil Myrlid"]
[Black "Bronmo, Askild Skovgaard"]
[Result "1-0"]
[ECO "A67"]
[WhiteElo "1892"]
[BlackElo "1500"]
[Annotator "NA"]
[PlyCount "75"]
[EventDate "2020.02.19"]
[EventType "swiss"]
[EventCountry "NOR"]
[SourceTitle "playchess.com"]
[Source "ChessBase"]
[SourceQuality "1"]
[TimeControl "5400+30"]

1. d4 {[%emt 1:17:21]} Nf6 {[%emt 0:00:06]} 2. c4 {[%emt 0:00:00]} c5 {[%emt 0:00:00]} 3. d5 {[%emt 0:00:00]} e6 {[%emt 0:00:00]} 4. Nc3 {[%emt 0:00:00]} exd5 {[%emt 0:00:06]} 5. cxd5 {[%emt 0:00:00]} d6 {[%emt 0:00:04]} 6. e4 {[%emt 0:00:00]} g6 {[%emt 0:00:06]} 7. f4 {[%emt 0:00:00]} Bg7 {[%emt 0:00:07]} 8. Bb5+ {[%emt 0:00:00]} Nfd7 {[%emt 0:00:07]} 9. a4 {[%emt 0:00:00]} a6 {[%emt 0:00:29]} 10. Bd3 {[%emt 0:00:00]} Qh4+ {[%emt 0:04:55]} 11. g3 {[%emt 0:00:00]} Qd8 {[%emt 0:00:04]} 12. Nf3 {[%emt 0:00:00]} O-O {[%emt 0:00:13]} 13. O-O {[%emt 0:00:00]} Nf6 {[%emt 0:00:08]} 14. Kg2 {[%emt 0:00:00]} Bg4 {[%emt 0:00:06]} 15. h3 {[%emt 0:00:00]} Bxf3+ {[%emt 0:00:05]} 16. Qxf3 {[%emt 0:00:00]} Nbd7 {[%emt 0:00:07]} 17. Re1 {[%emt 0:00:00]} Qc7 {[%emt 0:04:26]} 18. b3 {[%emt 0:00:00]} Qa5 {[%emt 0:09:12]} 19. Bd2 {[%emt 0:00:00]} Nxd5 {[%emt 0:01:56]} 20. Nxd5 {[%emt 0:00:00]} Qxd2+ {[%emt 0:00:14]} 21. Re2 {[%emt 0:00:00]} Qxe2+ {[%emt 0:03:13]} 22. Qxe2 {[%emt 0:00:00]} Bxa1 {[%emt 0:00:43]} 23. Qg4 {[%emt 0:00:00]} Rad8 {[%emt 0:05:33]} 24. Bc4 {[%emt 0:00:00]} Nf6 {[%emt 0:06:19]} 25. Nxf6+ {[%emt 0:00:00]} Bxf6 {[%emt 0:00:07]} 26. h4 {[%emt 0:00:00]} Rfe8 {[%emt 0:06:20]} 27. Bd5 {[%emt 0:00:00]} Re7 {[%emt 0:04:04]} 28. h5 {[%emt 0:00:00]} Kg7 {[%emt 0:00:23]} 29. Qh3 {[%emt 0:04:38]} h6 {[%emt 0:11:25]} 30. Qg4 {[%emt 0:04:10]} Kh7 {[%emt 0:05:43]} 31. Bxf7 {[%emt 0:03:05]} Bg7 {[%emt 0:03:21]} 32. Qxg6+ {[%emt 0:02:34]} Kh8 {[%emt 0:00:04]} 33. Bd5 {[%emt 0:03:14]} b5 {[%emt 0:05:06]} 34. axb5 {[%emt 0:00:02]} axb5 {[%emt 0:00:07]} 35. f5 {[%emt 0:00:53]} Be5 {[%emt 0:01:49]} 36. f6 {[%emt 0:03:55]} Rh7 {[%emt 0:01:11]} 37. f7 {[%emt 0:01:35]} Bg7 {[%emt 0:00:07]} 38. Be6 {[%emt 0:01:11]} 1-0

[Event "Kragero Resort B 2020"]
[Site "Kragero"]
[Date "2020.02.22"]
[Round "8.11"]
[White "Amundsen, Ask"]
[Black "Haugen, Lars Tormod"]
[Result "1-0"]
[ECO "B34"]
[WhiteElo "1707"]
[BlackElo "1598"]
[Annotator "NA"]
[PlyCount "86"]
[EventDate "2020.02.19"]
[EventType "swiss"]
[EventCountry "NOR"]
[SourceTitle "playchess.com"]
[Source "ChessBase"]
[SourceQuality "1"]
[TimeControl "5400+30"]

1. e4 {[%emt 0:00:00]} c5 {[%emt 0:03:29]} 2. Nf3 {[%emt 0:00:00]} g6 {[%emt 0:00:30]} 3. d4 {[%emt 0:00:00]} cxd4 {[%emt 0:00:12]} 4. Nxd4 {[%emt 0:00:00]} Bg7 {[%emt 0:00:09]} 5. Nc3 {[%emt 0:00:09]} Nc6 {[%emt 0:00:10]} 6. Be3 {[%emt 0:00:05]} Nf6 {[%emt 0:00:25]} 7. f3 {[%emt 0:00:25]} O-O {[%emt 0:00:26]} 8. Qd2 {[%emt 0:00:48]} d5 {[%emt 0:02:23]} 9. Nxc6 {[%emt 0:03:06]} bxc6 {[%emt 0:00:41]} 10. exd5 {[%emt 0:00:15]} Nxd5 {[%emt 0:08:56]} 11. Nxd5 {[%emt 0:02:00]} cxd5 {[%emt 0:00:55]} 12. O-O-O {[%emt 0:01:46]} Rb8 {[%emt 0:11:40]} 13. Bd4 {[%emt 0:05:33]} Bxd4 {[%emt 0:20:01]} 14. Qxd4 {[%emt 0:00:20]} Be6 {[%emt 0:00:14]} 15. h4 {[%emt 0:07:02]} Qb6 {[%emt 0:05:58]} 16. h5 {[%emt 0:05:40]} Qxd4 {[%emt 0:08:01]} 17. Rxd4 {[%emt 0:01:00]} g5 {[%emt 0:00:17]} 18. Bd3 {[%emt 0:04:27]} Rb6 {[%emt 0:04:04]} 19. g4 {[%emt 0:05:24]} Rfb8 {[%emt 0:01:50]} 20. b3 {[%emt 0:00:54]} Rb4 {[%emt 0:05:17]} 21. Rxb4 {[%emt 0:00:12]} Rxb4 {[%emt 0:00:01]} 22. Kd2 {[%emt 0:04:32]} h6 {[%emt 0:00:20]} 23. Rc1 {[%emt 0:04:20]} Rf4 {[%emt 0:02:55]} 24. Ke2 {[%emt 0:03:41]} d4 {[%emt 0:09:40]} 25. c4 {[%emt 0:01:24]} dxc3 {[%emt 0:00:07]} 26. Rxc3 {[%emt 0:00:13]} Bd5 {[%emt 0:02:22]} 27. Bc4 {[%emt 0:00:56]} Bb7 {[%emt 0:02:23]} 28. Bb5 {[%emt 0:12:00]} f5 {[%emt 0:03:02]} 29. Bd7 {[%emt 0:02:17]} fxg4 {[%emt 0:01:19]} 30. Bxg4 {[%emt 0:00:16]} Rb4 {[%emt 0:01:37]} 31. Be6+ {[%emt 0:03:02]} Kg7 {[%emt 0:00:26]} 32. Rc7 {[%emt 0:01:57]} Kf6 {[%emt 0:00:26]} 33. Bc4 {[%emt 0:00:12]} Rb6 {[%emt 0:01:51]} 34. a4 {[%emt 0:02:13]} a5 {[%emt 0:03:21]} 35. Rc5 {[%emt 0:00:55]} e5 {[%emt 0:01:21]} 36. Rxa5 {[%emt 0:01:03]} Kf5 {[%emt 0:00:01]} 37. Ke3 {[%emt 0:02:27]} Rf6 {[%emt 0:01:02]} 38. Rb5 {[%emt 0:01:10]} Bc6 {[%emt 0:00:28]} 39. Rb6 {[%emt 0:00:47]} Be8 {[%emt 0:00:18]} 40. Bd3+ {[%emt 0:00:10]} e4 {[%emt 0:00:32]} 41. Bxe4+ {[%emt 0:00:13]} Ke5 {[%emt 0:00:09]} 42. Rxf6 {[%emt 0:01:10]} Kxf6 {[%emt 0:00:01]} 43. a5 {[%emt 0:00:19]} Bb5 {[%emt 0:01:03]} 1-0

[Event "Kragero Resort B 2020"]
[Site "Kragero"]
[Date "2020.02.22"]
[Round "8.12"]
[White "Heitun, Odd Gunnar"]
[Black "Shehzad, Alisha"]
[Result "0-1"]
[ECO "E24"]
[WhiteElo "1599"]
[BlackElo "1705"]
[Annotator "NA"]
[PlyCount "110"]
[EventDate "2020.02.19"]
[EventType "swiss"]
[EventCountry "NOR"]
[SourceTitle "playchess.com"]
[Source "ChessBase"]
[SourceQuality "1"]
[TimeControl "5400+30"]

1. d4 {[%emt 0:00:00]} Nf6 {[%emt 0:01:51]} 2. c4 {[%emt 0:00:00]} e6 {[%emt 0:01:35]} 3. Nc3 {[%emt 0:00:00]} Bb4 {[%emt 0:00:29]} 4. a3 {[%emt 0:02:31]} Bxc3+ {[%emt 0:00:12]} 5. bxc3 {[%emt 0:00:08]} c5 {[%emt 0:00:34]} 6. Bd2 {[%emt 0:02:55]} Nc6 {[%emt 0:00:42]} 7. Nf3 {[%emt 0:00:34]} d6 {[%emt 0:00:44]} 8. g3 {[%emt 0:00:47]} O-O {[%emt 0:01:36]} 9. Bg2 {[%emt 0:00:30]} Qd7 {[%emt 0:01:58]} 10. Qc2 {[%emt 0:09:00]} Na5 {[%emt 0:01:34]} 11. dxc5 {[%emt 0:06:16]} Nxc4 {[%emt 0:12:53]} 12. cxd6 {[%emt 0:00:16]} Qxd6 {[%emt 0:04:04]} 13. Bc1 {[%emt 0:02:31]} e5 {[%emt 0:06:37]} 14. O-O {[%emt 0:04:14]} Rd8 {[%emt 0:01:51]} 15. Bb2 {[%emt 0:01:16]} Nxb2 {[%emt 0:02:47]} 16. Qxb2 {[%emt 0:00:16]} Be6 {[%emt 0:03:24]} 17. Qb4 {[%emt 0:16:39]} Qc7 {[%emt 0:03:16]} 18. Rac1 {[%emt 0:07:14]} Rac8 {[%emt 0:01:56]} 19. Ng5 {[%emt 0:05:01]} Bd5 {[%emt 0:01:37]} 20. e4 {[%emt 0:01:44]} Bc6 {[%emt 0:03:43]} 21. Rfe1 {[%emt 0:04:45]} b6 {[%emt 0:09:00]} 22. f3 {[%emt 0:03:38]} h6 {[%emt 0:00:50]} 23. Nh3 {[%emt 0:00:04]} Bb7 {[%emt 0:02:24]} 24. Nf2 {[%emt 0:00:20]} Qc5 {[%emt 0:05:20]} 25. Qb2 {[%emt 0:01:28]} Rd3 {[%emt 0:01:26]} 26. Qb4 {[%emt 0:12:46]} Rxc3 {[%emt 0:01:09]} 27. Rxc3 {[%emt 0:01:06]} Qxc3 {[%emt 0:00:14]} 28. Qxc3 {[%emt 0:00:11]} Rxc3 {[%emt 0:00:04]} 29. Ra1 {[%emt 0:00:08]} Kf8 {[%emt 0:03:47]} 30. Bf1 {[%emt 0:00:49]} Rxf3 {[%emt 0:01:49]} 31. Nd3 {[%emt 0:00:46]} Nd7 {[%emt 0:03:57]} 32. Re1 {[%emt 0:02:41]} g5 {[%emt 0:03:00]} 33. Kg2 {[%emt 0:00:16]} Rf6 {[%emt 0:01:10]} 34. Nf2 {[%emt 0:01:16]} Nc5 {[%emt 0:00:44]} 35. Kg1 {[%emt 0:01:23]} h5 {[%emt 0:02:06]} 36. Nd3 {[%emt 0:01:15]} Nxd3 {[%emt 0:00:53]} 37. Bxd3 {[%emt 0:00:08]} Rd6 {[%emt 0:01:03]} 38. Bb1 {[%emt 0:02:10]} Ke7 {[%emt 0:01:07]} 39. Rc1 {[%emt 0:01:00]} Rd7 {[%emt 0:01:24]} 40. Kg2 {[%emt 0:01:16]} f5 {[%emt 0:00:46]} 41. Rc4 {[%emt 0:02:15]} Bxe4+ {[%emt 0:01:02]} 42. Bxe4 {[%emt 0:00:28]} fxe4 {[%emt 0:00:08]} 43. Rxe4 {[%emt 0:00:09]} Kf6 {[%emt 0:00:11]} 44. Re3 {[%emt 0:00:20]} g4 {[%emt 0:00:40]} 45. Kg1 {[%emt 0:00:43]} Kf5 {[%emt 0:00:18]} 46. Kg2 {[%emt 0:00:17]} e4 {[%emt 0:00:11]} 47. Rb3 {[%emt 0:00:40]} Rd5 {[%emt 0:02:23]} 48. Kf2 {[%emt 0:00:48]} b5 {[%emt 0:00:41]} 49. Ke3 {[%emt 0:01:05]} a6 {[%emt 0:01:49]} 50. Rc3 {[%emt 0:01:07]} Rd3+ {[%emt 0:01:41]} 51. Rxd3 {[%emt 0:00:07]} exd3 {[%emt 0:00:03]} 52. Kxd3 {[%emt 0:00:09]} Ke5 {[%emt 0:00:10]} 53. Ke3 {[%emt 0:00:20]} a5 {[%emt 0:00:10]} 54. Kd3 {[%emt 0:00:16]} Kd5 {[%emt 0:00:17]} 55. Kc3 {[%emt 0:00:07]} Ke4 {[%emt 0:00:27]} 0-1

[Event "Kragero Resort B 2020"]
[Site "Kragero"]
[Date "2020.02.23"]
[Round "9.1"]
[White "Austad, Eirik"]
[Black "Seo, Jung Hyun"]
[Result "1-0"]
[ECO "A28"]
[WhiteElo "1796"]
[BlackElo "1816"]
[Annotator "NA"]
[PlyCount "61"]
[EventDate "2020.02.19"]
[EventType "swiss"]
[EventCountry "NOR"]
[SourceTitle "playchess.com"]
[Source "ChessBase"]
[SourceQuality "1"]
[TimeControl "5400+30"]

1. c4 {[%emt 0:00:00]} e5 {[%emt 0:00:00]} 2. Nc3 {[%emt 0:00:00]} Nf6 {[%emt 0:00:00]} 3. Nf3 {[%emt 0:00:00]} Nc6 {[%emt 0:00:00]} 4. a3 {[%emt 0:00:07]} d5 {[%emt 0:00:00]} 5. cxd5 {[%emt 0:00:14]} Nxd5 {[%emt 0:00:00]} 6. Qc2 {[%emt 0:00:08]} Nxc3 {[%emt 0:00:07]} 7. bxc3 {[%emt 0:02:31]} Qf6 {[%emt 0:00:50]} 8. e4 {[%emt 0:12:45]} Bc5 {[%emt 0:02:20]} 9. Be2 {[%emt 0:05:10]} Qg6 {[%emt 0:01:46]} 10. Nh4 {[%emt 0:16:03]} Qg5 {[%emt 0:03:45]} 11. d4 $11 {[%emt 0:07:42]} Qxh4 {[%emt 0:03:22]} 12. dxc5 {[%emt 0:00:06]} O-O {[%emt 0:05:33]} 13. O-O {[%emt 0:03:59]} Qe7 {[%emt 0:07:26]} 14. Be3 {[%emt 0:01:15]} Bd7 {[%emt 0:02:55]} 15. Rfd1 {[%emt 0:08:38]} Rad8 {[%emt 0:08:26]} 16. Rab1 {[%emt 0:01:54]} Bc8 {[%emt 0:05:52]} 17. Bc4 {[%emt 0:03:15]} Rxd1+ {[%emt 0:06:49]} 18. Qxd1 {[%emt 0:00:43]} a6 {[%emt 0:10:39]} 19. Qa4 {[%emt 0:04:53]} Nb8 {[%emt 0:03:55]} 20. Qb3 {[%emt 0:04:53]} Rd8 {[%emt 0:04:23]} 21. Rf1 {[%emt 0:01:50]} c6 {[%emt 0:07:15]} 22. f4 {[%emt 0:03:51]} exf4 {[%emt 0:00:33]} 23. Bxf4 {[%emt 0:00:22]} Be6 {[%emt 0:00:30]} 24. Bxe6 {[%emt 0:01:55]} Qxc5+ {[%emt 0:02:41]} 25. Kh1 {[%emt 0:00:17]} fxe6 {[%emt 0:00:03]} 26. Qxe6+ {[%emt 0:00:16]} Kh8 {[%emt 0:00:01]} 27. Bd6 {[%emt 0:03:45]} Qb5 {[%emt 0:01:16]} 28. c4 {[%emt 0:00:52]} Qb2 {[%emt 0:00:50]} 29. Qe7 {[%emt 0:00:45]} Rg8 {[%emt 0:00:59]} 30. Be5 {[%emt 0:00:49]} Qe2 {[%emt 0:00:31]} 31. Qxg7+ {[%emt 0:01:01]} 1-0

[Event "Kragero Resort B 2020"]
[Site "Kragero"]
[Date "2020.02.23"]
[Round "9.2"]
[White "Solaas, Timian Martinius Man"]
[Black "Westrum, Kim Roger Hansen"]
[Result "0-1"]
[ECO "C56"]
[WhiteElo "1741"]
[BlackElo "1809"]
[Annotator "NA"]
[PlyCount "92"]
[EventDate "2020.02.19"]
[EventType "swiss"]
[EventCountry "NOR"]
[SourceTitle "playchess.com"]
[Source "ChessBase"]
[SourceQuality "1"]
[TimeControl "5400+30"]

1. e4 {[%emt 0:00:00]} e5 {[%emt 0:00:00]} 2. Nf3 {[%emt 0:00:00]} Nc6 {[%emt 0:00:00]} 3. d4 {[%emt 0:00:24]} exd4 {[%emt 0:00:01]} 4. Bc4 {[%emt 0:00:05]} Nf6 {[%emt 0:00:15]} 5. e5 {[%emt 0:00:05]} d5 {[%emt 0:00:11]} 6. Bb5 {[%emt 0:00:07]} Ne4 {[%emt 0:00:06]} 7. Nxd4 {[%emt 0:00:05]} a6 {[%emt 0:00:24]} 8. Bxc6+ {[%emt 0:13:01]} bxc6 {[%emt 0:00:08]} 9. Nxc6 {[%emt 0:02:29]} Qd7 {[%emt 0:00:06]} 10. Nd4 {[%emt 0:01:08]} c5 {[%emt 0:00:11]} 11. Nf3 {[%emt 0:00:30]} Be7 {[%emt 0:04:11]} 12. O-O {[%emt 0:01:47]} Bb7 {[%emt 0:01:30]} 13. Re1 {[%emt 0:06:52]} Qc6 {[%emt 0:01:21]} 14. Nbd2 {[%emt 0:02:22]} O-O-O $16 {[%emt 0:11:34]} (14... O-O $11 {keeps the balance.}) 15. Qe2 {[%emt 0:07:09]} g5 {[%emt 0:01:12]} 16. Nxe4 {[%emt 0:03:46]} dxe4 {[%emt 0:00:11]} 17. Nxg5 {[%emt 0:05:36]} Rhg8 {[%emt 0:06:11]} 18. Nxe4 {[%emt 0:05:19]} Qxe4 {[%emt 0:01:45]} 19. Qxe4 {[%emt 0:02:08]} Bxe4 {[%emt 0:00:06]} 20. g3 {[%emt 0:03:37]} Bf3 {[%emt 0:04:09]} 21. Be3 {[%emt 0:09:25]} Rd5 {[%emt 0:02:22]} 22. Bf4 {[%emt 0:01:16]} Rgd8 {[%emt 0:00:24]} 23. Kf1 {[%emt 0:02:12]} Rd1 {[%emt 0:09:57]} 24. c3 {[%emt 0:03:27]} Kb7 {[%emt 0:00:56]} 25. Raxd1 {[%emt 0:02:19]} Rxd1 {[%emt 0:00:20]} 26. Rxd1 {[%emt 0:00:39]} Bxd1 {[%emt 0:00:09]} 27. Ke1 {[%emt 0:00:13]} Bc2 {[%emt 0:02:42]} 28. b3 {[%emt 0:03:00]} c4 {[%emt 0:17:36]} 29. b4 {[%emt 0:03:50]} Kc6 {[%emt 0:01:16]} 30. Kd2 {[%emt 0:00:57]} Bd3 {[%emt 0:00:41]} 31. a4 {[%emt 0:00:56]} Kd5 {[%emt 0:00:27]} 32. Kd1 {[%emt 0:03:03]} Bf8 {[%emt 0:00:39]} 33. Kd2 {[%emt 0:00:30]} Bg7 {[%emt 0:00:20]} 34. Be3 {[%emt 0:00:56]} Bxe5 {[%emt 0:00:37]} 35. Bb6 {[%emt 0:01:02]} Ke4 {[%emt 0:01:20]} 36. Be3 {[%emt 0:01:11]} Kf3 {[%emt 0:00:47]} 37. b5 {[%emt 0:01:36]} axb5 {[%emt 0:00:31]} 38. axb5 {[%emt 0:00:00]} Kg2 {[%emt 0:01:09]} 39. h4 {[%emt 0:00:00]} Kf3 {[%emt 0:00:05]} 40. b6 {[%emt 0:00:04]} Be4 {[%emt 0:00:08]} 41. Bc5 {[%emt 0:01:26]} f5 {[%emt 0:00:15]} 42. Bd4 {[%emt 0:00:35]} Bxd4 {[%emt 0:02:50]} 43. cxd4 {[%emt 0:02:14]} Kxf2 {[%emt 0:00:17]} 44. Kc3 {[%emt 0:01:40]} Bd5 {[%emt 0:00:10]} 45. Kb4 {[%emt 0:00:19]} Kxg3 {[%emt 0:00:09]} 46. Kc5 {[%emt 0:00:05]} Bb7 {[%emt 0:00:10]} 0-1

[Event "Kragero Resort B 2020"]
[Site "Kragero"]
[Date "2020.02.23"]
[Round "9.3"]
[White "Skaslien, Ingrid"]
[Black "Halvorsen, Benjamin"]
[Result "1-0"]
[ECO "A80"]
[WhiteElo "1847"]
[BlackElo "1861"]
[Annotator "NA"]
[PlyCount "105"]
[EventDate "2020.02.19"]
[EventType "swiss"]
[EventCountry "NOR"]
[SourceTitle "playchess.com"]
[Source "ChessBase"]
[SourceQuality "1"]
[TimeControl "5400+30"]

1. d4 {[%emt 0:00:00]} f5 {[%emt 0:00:00]} 2. Bg5 {[%emt 0:00:00]} Nf6 {[%emt 0:00:40]} 3. Bxf6 {[%emt 0:00:06]} exf6 {[%emt 0:00:05]} 4. e3 {[%emt 0:00:15]} d5 {[%emt 0:00:06]} 5. c4 {[%emt 0:01:30]} c6 {[%emt 0:03:50]} 6. cxd5 {[%emt 0:04:22]} cxd5 {[%emt 0:00:39]} 7. Nc3 {[%emt 0:00:14]} Be6 {[%emt 0:06:13]} 8. Bd3 {[%emt 0:01:27]} Nc6 {[%emt 0:00:52]} 9. a3 {[%emt 0:03:12]} a6 {[%emt 0:03:11]} 10. Nge2 {[%emt 0:01:29]} Bd6 {[%emt 0:01:33]} 11. Ng3 {[%emt 0:04:44]} Qd7 {[%emt 0:03:12]} 12. Qf3 {[%emt 0:03:12]} f4 {[%emt 0:03:40]} 13. Nh5 $17 {[%emt 0:10:10]} (13. Nge2 $11 {remains equal.}) 13... Bg4 {[%emt 0:06:33]} 14. Qxd5 {[%emt 0:00:53]} Ne7 {[%emt 0:00:38]} 15. Nxg7+ {[%emt 0:17:33]} Kf8 {[%emt 0:00:19]} 16. Qb3 {[%emt 0:00:21]} Kxg7 {[%emt 0:01:16]} 17. O-O {[%emt 0:06:13]} f3 {[%emt 0:01:45]} 18. g3 {[%emt 0:00:32]} Bh3 {[%emt 0:00:16]} 19. Rfe1 {[%emt 0:02:03]} h5 {[%emt 0:11:19]} 20. Ne4 {[%emt 0:05:55]} Nf5 {[%emt 0:07:06]} 21. Nd2 {[%emt 0:02:47]} Bg2 {[%emt 0:03:55]} 22. Be4 {[%emt 0:04:22]} Rab8 {[%emt 0:01:18]} 23. Nxf3 {[%emt 0:05:16]} Bxf3 {[%emt 0:00:22]} 24. Bxf3 {[%emt 0:00:06]} Nh6 {[%emt 0:06:44]} 25. Qd5 {[%emt 0:02:42]} Ng4 {[%emt 0:12:14]} 26. h3 {[%emt 0:03:13]} Nh6 {[%emt 0:01:58]} 27. e4 {[%emt 0:00:56]} Rbd8 {[%emt 0:04:33]} 28. e5 {[%emt 0:01:50]} Bb8 {[%emt 0:01:37]} 29. Qxb7 {[%emt 0:00:40]} Qxb7 {[%emt 0:04:08]} 30. Bxb7 {[%emt 0:00:06]} Rxd4 {[%emt 0:00:59]} 31. exf6+ {[%emt 0:01:20]} Kxf6 {[%emt 0:00:15]} 32. Bxa6 {[%emt 0:00:11]} Rd2 {[%emt 0:00:13]} 33. Re2 {[%emt 0:00:18]} Rhd8 {[%emt 0:02:38]} 34. Rae1 {[%emt 0:00:21]} R8d6 {[%emt 0:03:09]} 35. Rxd2 Rxd2 {[%emt 0:00:59]} 36. Re2 {[%emt 0:00:39]} Rd6 37. Bc4 {[%emt 0:01:10]} Nf5 38. Kg2 {[%emt 0:01:33]} Ba7 {[%emt 0:03:16]} 39. g4 {[%emt 0:00:02]} Nd4 {[%emt 0:00:23]} 40. Re8 {[%emt 0:01:58]} h4 {[%emt 0:00:20]} 41. Rf8+ {[%emt 0:00:45]} Kg6 {[%emt 0:00:41]} 42. f4 {[%emt 0:01:48]} Nc2 {[%emt 0:00:51]} 43. Kf3 {[%emt 0:01:08]} Rd2 {[%emt 0:00:55]} 44. f5+ {[%emt 0:00:54]} Kg5 {[%emt 0:01:35]} 45. Rg8+ {[%emt 0:00:23]} Kh6 {[%emt 0:00:14]} 46. g5+ {[%emt 0:00:21]} Kh7 {[%emt 0:01:19]} 47. g6+ {[%emt 0:00:48]} Kh6 {[%emt 0:00:02]} 48. Rh8+ {[%emt 0:00:31]} Kg5 {[%emt 0:00:51]} 49. g7 {[%emt 0:00:32]} Rf2+ {[%emt 0:00:16]} 50. Ke4 {[%emt 0:00:09]} Rf4+ {[%emt 0:00:14]} 51. Kd3 {[%emt 0:00:55]} Ne1+ {[%emt 0:00:24]} 52. Ke2 {[%emt 0:01:49]} Re4+ {[%emt 0:00:46]} 53. Kd1 {[%emt 0:00:15]} 1-0